Workbook

Sheet Prihodi (hidden)
C23: Rashodi:
C24: Neutrošena sredstva:

Sheet Rashodi
B1: SS CENTAR ZA ODGOJ I OBRAZOVANJE
B2: Zagorska 14 ZAGREB
B3: OIB 66687839353
B6: Na temelju čl. 28 st.1 Zakona o javnoj nabavi i Statuta škole ,na sjednici Školskog odbora
C7: održanoj 16.12.2019. godine, donesen je
D10: PLAN NABAVE ZA 2020. GODINU
C11: (bez poreza na dodanu vrijednost)
A15: Red.br. | B15: Pozicija plana (konto) | C15: Predmet nabave | D15: NAZIV | E15: Procjenjena vrijdnost nabave | F15: Plan 2011. | G15: Plan 2012. | H15: PLAN 2011. | I15: PLAN 2012. | J15: Gradski proračun | K15: Ostali prihodi | L15: Postupak i način nabave | M15: procjenjena vriejd.bez PDV-a | N15: pdv | O15: planirana vrijdnost nabave sa PDV-om | P15: Plan 2011. | Q15: Plan 2012. | R15: PLAN 2011. | S15: PLAN 2012. | T15: IZVOR Gradski proračun | U15: SREDSTAVA Ostali prihodi | V15: Postupak i način nabave
A16: 1 | C16: NAKNADA TROŠKOVA ZAPOSLENIMA | M16: =SUM(M17:M18) -> 14400 | N16: =SUM(N17:N18) -> 3600 | O16: =SUM(O17:O18) -> 18000 | P16: =SUM(P17:P17) -> 12250 | Q16: =SUM(Q17:Q17) -> 12600 | R16: =SUM(R17:R17) -> 7000 | S16: =SUM(S17:S17) -> 7000 | T16: =SUM(T17:T18) -> 18000 | U16: =SUM(U17:U18) -> 0
A17: 2 | B17: 32131 | C17: Seminari, savjetovanja i simpoziji | D17: Stručno usavršavanje | E17: 8000 | F17: 12250 | G17: 12600 | H17: 7000 | I17: 7000 | J17: 8000 | K17: 0 | M17: =SUM(O17-N17) -> 8000 | N17: =O17*20/100 -> 2000 | O17: 10000 | P17: 12250 | Q17: 12600 | R17: 7000 | S17: 7000 | T17: 10000 | U17: =SUM(O17-T17) -> 0 | V17: usluge IIB
B18: 32132 | C18: Tečajevi i stručni ispiti | D18: Stručno usavršavanje | M18: =SUM(O18-N18) -> 6400 | N18: =O18*20/100 -> 1600 | O18: 8000 | T18: 8000 | U18: 0 | V18: usluge IIB
A19: 3 | C19: NABAVA ZA MATERIJAL I ENERGIJU | M19: =SUM(O19-N19) -> 292800 | N19: =SUM(N20:N34) -> 73200 | O19: =SUM(O20:O34) -> 366000 | P19: =SUM(P20:P33) -> 576900 | Q19: 595300 | R19: 333000 | S19: 345000 | T19: =SUM(T20:T34) -> 245000 | U19: 121000
A20: 4 | B20: 32211 | C20: Uredski materijal | D20: Razni uredski materijal | E20: 24000 | F20: 25500 | G20: 26200 | H20: 15000 | I20: 16000 | J20: 21400 | K20: 2600 | L20: Izrav.ugovar. | M20: 16000 | N20: =O20*20/100 -> 4000 | O20: 20000 | P20: 25500 | Q20: 26200 | R20: 15000 | S20: 16000 | T20: 5000 | U20: 15000 | V20: Izrav.ugovar.
A21: 5 | B21: 32212 | C21: Literatura | D21: Knjige, časopisi, brošure, | E21: 10000 | F21: 12250 | G21: 12600 | H21: 7000 | I21: 7000 | J21: 10000 | L21: Izrav.ugovar. | M21: 7200 | N21: 1800 | O21: 9000 | P21: 12250 | Q21: 12600 | R21: 7000 | S21: 7000 | T21: 5000 | U21: 4000 | V21: Izrav.ugovar.
A22: 6 | B22: 32214 | C22: Mat.i sredstva za čišćenje i održ. | D22: Sred.za čišćenje | E22: 8300 | F22: 112400 | G22: 115500 | H22: 65000 | I22: 67000 | J22: 5300 | K22: 3000 | L22: Izrav.ugovar. | M22: 4000 | N22: 1000 | O22: 5000 | P22: 112400 | Q22: 115500 | R22: 65000 | S22: 67000 | T22: 5000 | U22: 0 | V22: Izrav.ugovar.
A23: 8 | B23: 32216 | C23: Mat. za hig.potrebe i njegu | D23: wc papir,tek sapun, papirn.ručnici | E23: 10000 | F23: 15300 | G23: 15700 | H23: 9000 | I23: 9000 | J23: 10000 | L23: Izrav.ugovar. | M23: 2400 | N23: 600 | O23: 3000 | P23: 15300 | Q23: 15700 | R23: 9000 | S23: 9000 | T23: 3000 | U23: 0 | V23: Izrav.ugovar.
A24: 9 | B24: 32219 | C24: Ost.mat.za potrebe red.poslovanja | D24: Ostali razni materijal | E24: 4000 | F24: 4100 | G24: 4200 | H24: 2000 | I24: 3000 | J24: 4000 | L24: Izrav.ugovar. | M24: 8800 | N24: 2200 | O24: 11000 | P24: 4100 | Q24: 4200 | R24: 2000 | S24: 3000 | T24: 10000 | U24: 1000 | V24: Izrav.ugovar.
A25: 10 | B25: 32222 | C25: Pomoćni materijal | D25: mat. Za knjgov. radno i zadr. | E25: 50600 | F25: 53200 | G25: 57300 | H25: 31000 | I25: 33000 | J25: 30176 | K25: 20424 | L25: Izrav.ugovar. | M25: =SUM(O25-N25) -> 16000 | N25: 4000 | O25: 20000 | P25: 53200 | Q25: 57300 | R25: 31000 | S25: 33000 | T25: 10000 | U25: 10000 | V25: Izrav.ugovar.
A26: 11 | B26: 32229 | C26: Ostali materijal i sirovine | D26: mat.za cvjećare,EU projekt | M26: =SUM(O26-N26) -> 12000 | N26: 3000 | O26: 15000 | T26: 1000 | U26: 14000 | V26: Izrav.ugovar.
A27: 11 | B27: 32224 | C27: Namirnice | D27: mat.za šk. Kuhinju | M27: =SUM(O27-N27) -> 80000 | N27: =O27*20/100 -> 20000 | O27: 100000 | T27: 25000 | U27: 75000 | V27: Izrav.ugovar.
A28: 12 | B28: 32231 | C28: Električna energija | D28: Električna energija | E28: 65000 | F28: 66150 | G28: 67900 | H28: 38000 | I28: 40000 | J28: 55000 | K28: 10000 | L28: Izrav.ugovar. | M28: =SUM(O28-N28) -> 20000 | N28: 5000 | O28: 25000 | P28: 66150 | Q28: 67900 | R28: 38000 | S28: 40000 | T28: 25000 | U28: =SUM(O28-T28) -> 0 | V28: Izrav.ugovar.
A29: 13 | B29: 32232 | C29: Topla voda(toplana) | D29: topla voda -toplana | E29: 135000 | F29: 137300 | G29: 141100 | H29: 79000 | I29: 81000 | J29: 125000 | K29: 10000 | L29: Izrav.ugovar. | M29: 72000 | N29: 18000 | O29: 90000 | P29: 137300 | Q29: 141100 | R29: 79000 | S29: 81000 | T29: 90000 | U29: 0 | V29: Izrav.ugovar.
A30: 14 | B30: 32241 | C30: Mat.i dij.za tek.i inv.održ.građ. | D30: Boje , parket,pločice i dr.mat. | E30: 97000 | F30: 112900 | G30: 116000 | H30: 65000 | I30: 67000 | J30: 97000 | L30: Izrav.ugovar. | M30: 4000 | N30: 1000 | O30: 5000 | P30: 112900 | Q30: 116000 | R30: 65000 | S30: 67000 | T30: 5000 | U30: =SUM(O30-T30) -> 0 | V30: Izrav.ugovar.
A31: 15 | B31: 32242 | C31: Mat.i dij.za tek.i inv.održ.postr.i opr. | D31: Mat.i dij.za održ.postr.i opr. | E31: 20000 | F31: 20400 | G31: 20900 | H31: 12000 | I31: 12000 | J31: 20000 | L31: Izrav.ugovar. | M31: 25600 | N31: 6400 | O31: 32000 | P31: 20400 | Q31: 20900 | R31: 12000 | S31: 12000 | T31: 32000 | U31: =SUM(O31-T31) -> 0 | V31: Izrav.ugovar.
A32: 16 | B32: 32243 | C32: Mat.i dij.za tek.i inv.održ.trans.sred. | D32: razni dijel. | E32: 7000 | F32: 7200 | G32: 7400 | H32: 4000 | I32: 4000 | J32: 7000 | L32: Izrav.ugovar. | M32: 0 | N32: 0 | O32: 0 | P32: 7200 | Q32: 7400 | R32: 4000 | S32: 4000 | T32: 0 | U32: =SUM(O32-T32) -> 0 | V32: Izrav.ugovar.
A33: 17 | B33: 32251 | C33: Sitni inventar | D33: Oprema za ustanovu | E33: 10000 | F33: 10200 | G33: 10500 | H33: 6000 | I33: 6000 | J33: 10000 | L33: Izrav.ugovar. | M33: 17600 | N33: 4400 | O33: 22000 | P33: 10200 | Q33: 10500 | R33: 6000 | S33: 6000 | T33: 20000 | U33: 2000 | V33: Izrav.ugovar.
A34: 7 | B34: 32271 | C34: Služb, radna i zaš.odjeća i obuća | D34: Radna odjeća i obuća | E34: 25000 | F34: 34200 | G34: 35100 | H34: 20000 | I34: 21000 | J34: 25000 | L34: Izrav.ugovar. | M34: 7200 | N34: 1800 | O34: 9000 | P34: 34200 | Q34: 35100 | R34: 20000 | S34: 21000 | T34: 9000 | U34: =SUM(O34-T34) -> 0 | V34: Izrav.ugovar.
A35: 18 | C35: NABAVA USLUGA | M35: 274320 | N35: =SUM(N36:N62) -> 68580 | O35: 342900 | P35: 360653 | Q35: 370400.131 | R35: 210280.5769 | S35: 217423.1525 | T35: 315900 | U35: 27000
A36: 19 | B36: 32311 | C36: Usluge telefona, telefaksa | D36: Telekom | E36: 28000 | F36: 28500 | G36: 29300 | H36: 17000 | I36: 17000 | J36: 28000 | L36: Izrav.ugovar. | M36: 11200 | N36: 2800 | O36: 14000 | P36: 28500 | Q36: 29300 | R36: 17000 | S36: 17000 | T36: 14000 | U36: =SUM(O36-T36) -> 0 | V36: Izrav.ugovar.
A37: 20 | B37: 32312 | C37: Usluge interneta | D37: Internet | M37: 1600 | N37: 400 | O37: 2000 | T37: 2000 | U37: =SUM(O37-T37) -> 0 | V37: Izrav.ugovar.
A38: 21 | B38: 32313 | C38: Poštarina (pisma, tiskanice i sl.) | D38: Poštanske usluge | E38: 5000 | F38: 5100 | G38: 5300 | H38: 3000 | I38: 3000 | J38: 5000 | L38: Izrav.ugovar. | M38: 2800 | N38: 700 | O38: 3500 | P38: 5100 | Q38: 5300 | R38: 3000 | S38: 3000 | T38: 3500 | U38: 0 | V38: Izrav.ugovar.
B39: 32319 | C39: Ostale usl. za komunikaciju i prijevoz | D39: Prijevozničke usluge | M39: 12000 | N39: 3000 | O39: 15000 | T39: 14000 | U39: 1000 | V39: Izrav.ugovar.
A40: 22 | B40: 32321 | C40: Usl.tek.i inv.održ.građ.objekata | D40: Održavanje objekata | E40: 75000 | F40: 76300 | G40: 78400 | H40: 44000 | I40: 45000 | J40: 75000 | L40: Izrav.ugovar. | M40: 128000 | N40: 32000 | O40: 160000 | P40: 76300 | Q40: 78400 | R40: 44000 | S40: 45000 | T40: 160000 | U40: 0 | V40: Izrav.ugovar.
A41: 23 | B41: 32322 | C41: Usl.tek.i inv.održ.postroj.i opreme | D41: Održavanej opreme | E41: 57000 | F41: 58000 | G41: 59600 | H41: 33000 | I41: 35000 | J41: 57000 | L41: Izrav.ugovar. | M41: 12000 | N41: 3000 | O41: 15000 | P41: 58000 | Q41: 59600 | R41: 33000 | S41: 35000 | T41: 15000 | U41: 0 | V41: Izrav.ugovar.
A42: 24 | B42: 32331 | C42: Elektronski mediji | D42: Elektronski mediji | E42: 0 | F42: =SUM(E42*1.7/100)+E42 -> 0 | G42: =SUM(F42*2.7/100)+F42 -> 0 | H42: =SUM(F42/26*15) -> 0 | I42: =SUM(G42/26*15) -> 0 | J42: 0 | L42: Izrav.ugovar. | M42: 1600 | N42: 400 | O42: 2000 | P42: =SUM(O42*1.7/100)+O42 -> 2034 | Q42: =SUM(P42*2.7/100)+P42 -> 2088.918 | R42: =SUM(P42/26*15) -> 1173.461538 | S42: =SUM(Q42/26*15) -> 1205.145 | T42: 2000 | U42: 0 | V42: Izrav.ugovar.
B43: 32332 | C43: Tisak | D43: Tisak | M43: =SUM(O43-N43) -> 5600 | N43: 1400 | O43: 7000 | P43: =SUM(O43*1.7/100)+O43 -> 7119 | Q43: =SUM(P43*2.7/100)+P43 -> 7311.213 | R43: =SUM(P43/26*15) -> 4107.115385 | S43: =SUM(Q43/26*15) -> 4218.0075 | T43: 7000 | U43: =SUM(O43-T43) -> 0 | V43: Izrav.ugovar.
A44: 25 | B44: 32339 | C44: Ost.usl.promidžbe i informiranja | D44: Usluge promidžbe | E44: 7000 | F44: 7200 | G44: 7400 | H44: 4000 | I44: 5000 | J44: 7000 | L44: Izrav.ugovar. | M44: =SUM(O44-N44) -> 0 | N44: 0 | O44: 0 | P44: 7200 | Q44: 7400 | R44: 4000 | S44: 5000 | T44: 0 | U44: 0 | V44: Izrav.ugovar.
A45: 26 | B45: 32341 | C45: Opskrba vodom | D45: Pitka voda | E45: 75000 | F45: 76300 | G45: 78400 | H45: 44000 | I45: 45000 | J45: 75000 | L45: Izrav.ugovar. | M45: =SUM(O45-N45) -> 12000 | N45: 3000 | O45: 15000 | P45: 76300 | Q45: 78400 | R45: 44000 | S45: 45000 | T45: 15000 | U45: 0 | V45: Izrav.ugovar.
A46: 27 | B46: 32342 | C46: Iznošenje i odvoz smeća | D46: komunalne usluge | M46: 10400 | N46: 2600 | O46: 13000 | T46: 13000 | U46: 0 | V46: Izrav.ugovar.
A47: 28 | B47: 32343 | C47: Deratizacija i dezinsekcija | D47: Usluge deratizacije | E47: 5000 | F47: 5100 | G47: 5300 | H47: 3000 | I47: 3000 | J47: 5000 | L47: Izrav.ugovar. | M47: 1120 | N47: 280 | O47: 1400 | P47: 5100 | Q47: 5300 | R47: 3000 | S47: 3000 | T47: 1400 | U47: 0 | V47: Izrav.ugovar.
A48: 29 | B48: 32349 | C48: Ostale komunalne usluge | D48: Razne komunalne usluge | E48: 3000 | F48: 3100 | G48: 3200 | H48: 2000 | I48: 2000 | J48: 3000 | L48: Izrav.ugovar. | M48: 3200 | N48: 800 | O48: 4000 | P48: 3100 | Q48: 3200 | R48: 2000 | S48: 2000 | T48: 4000 | U48: 0 | V48: Izrav.ugovar.
A49: 30 | B49: 32361 | C49: Obvezni preventivni zdr.pregledi | D49: Razne zdrav.usluge | E49: 2000 | F49: 2050 | G49: 2100 | H49: 2000 | I49: 2000 | J49: 2000 | L49: Izrav.ugovar. | M49: 10400 | N49: 2600 | O49: 13000 | P49: 2050 | Q49: 2100 | R49: 2000 | S49: 2000 | T49: 13000 | U49: 0 | V49: Izrav.ugovar.
A50: 31 | B50: 32363 | C50: Laboratorijske usluge | D50: Brisevi | M50: 4000 | N50: 1000 | O50: 5000 | T50: 5000 | U50: 0 | V50: Izrav.ugovar.
A51: 32 | B51: 32373 | C51: Usluge odvjetnika i pravnog savjetovanja | D51: Pravno savjetovanje | M51: =SUM(O51-N51) -> 800 | N51: =O51*20/100 -> 200 | O51: 1000 | T51: 1000 | U51: =SUM(O51-T51) -> 0 | V51: Izrav.ugovar.
B52: 32379 | C52: Ostale intelektualne usluge | D52: izrada troškovnika | M52: =SUM(O52-N52) -> 4000 | N52: =O52*20/100 -> 1000 | O52: 5000 | T52: 5000 | U52: =SUM(O52-T52) -> 0 | V52: Izrav.ugovar.
A53: 33 | B53: 32389 | C53: Ostale rač. usluge | D53: Održavanje prog. | E53: 9000 | F53: 9200 | G53: 9400 | H53: 5000 | I53: 6000 | J53: 9000 | L53: Izrav.ugovar. | M53: 20000 | N53: 5000 | O53: 25000 | P53: 9200 | Q53: 9400 | R53: 5000 | S53: 6000 | T53: 15000 | U53: 10000 | V53: Izrav.ugovar.
A54: 34 | B54: 32391 | C54: Grafičke i tiskarske usluge | D54: fotokopiranje,sl. | M54: 8000 | N54: 2000 | O54: 10000 | T54: 4000 | U54: 6000 | V54: Izrav.ugovar.
A55: 35 | B55: 32396 | C55: Usluge čuvanja imovine i osoba | D55: zaštitarska služba | E55: 2500 | F55: 2600 | G55: 2600 | H55: 2000 | I55: 2000 | J55: 2500 | L55: Izrav.ugovar. | M55: 1600 | N55: 400 | O55: 2000 | P55: 2600 | Q55: 2600 | R55: 2000 | S55: 2000 | T55: 2000 | U55: 0 | V55: Izrav.ugovar.
A56: 36 | B56: 32922 | C56: Premije osiguranja ostale imovine | D56: Usluge osiguranja imovine | E56: 38000 | F56: 38700 | G56: 39700 | H56: 22000 | I56: 23000 | J56: 38000 | L56: Izrav.ugovar. | M56: 6400 | N56: 1600 | O56: 8000 | P56: 38700 | Q56: 39700 | R56: 22000 | S56: 23000 | T56: 8000 | U56: 0 | V56: Izrav.ugovar.
A57: 37 | B57: 32923 | C57: Premije osiguranjazaposlenih | D57: osiguranje zaposlenih | M57: 800 | N57: 200 | O57: 1000 | T57: 1000 | U57: 0 | V57: Izrav.ugovar.
A58: 38 | B58: 32931 | C58: Reprezentacija | D58: Razne prigode, ugošćivanja | E58: 18000 | F58: 18400 | G58: 18800 | H58: 11000 | I58: 11000 | J58: 18000 | L58: Izrav.ugovar. | M58: 800 | N58: 200 | O58: 1000 | P58: 18400 | Q58: 18800 | R58: 11000 | S58: 11000 | T58: 1000 | U58: 0 | V58: Izrav.ugovar.
A59: 39 | B59: 32941 | C59: Članarine | D59: članarine | M59: 1600 | N59: 400 | O59: 2000 | T59: 2000 | U59: 0 | V59: Izrav.ugovar.
A60: 40 | B60: 32999 | C60: Ostali nespom.rashodi poslovanja | D60: Ostali razni rashodi | E60: 1500 | F60: 1550 | G60: 1600 | H60: 1000 | I60: 1000 | J60: 1500 | L60: Izrav.ugovar. | M60: 10400 | N60: 2600 | O60: 13000 | P60: 1550 | Q60: 1600 | R60: 1000 | S60: 1000 | T60: 3000 | U60: 10000 | V60: Izrav.ugovar.
B61: 34311 | C61: Usluge banaka | D61: Bankarske nakande | M61: 3200 | N61: 800 | O61: 4000 | T61: 4000 | V61: Izrav.ugovar.
A62: 41 | B62: 34312 | C62: Usluge platnog prometa | D62: Certifikati | E62: 19000 | F62: 19400 | G62: 19900 | H62: 12000 | I62: 12000 | J62: 19000 | L62: Izrav.ugovar. | M62: 800 | N62: 200 | O62: 1000 | P62: 19400 | Q62: 19900 | R62: 12000 | S62: 12000 | T62: 1000 | U62: 0 | V62: Izrav.ugovar.
A63: 42 | C63: NABAVA NEPROIZ.I PROIZ.DUG.IMOV. | M63: =SUM(O63-N63) -> 16000 | N63: =SUM(N64:N66) -> 4000 | O63: =SUM(O64:O66) -> 20000 | P63: =SUM(P64:P66) -> 0 | Q63: 0 | R63: 0 | S63: 0 | T63: 20000 | U63: 0
A64: 43 | B64: 42211 | C64: Računala i rač.oprema | D64: računala | M64: =SUM(O64-N64) -> 5600 | N64: 1400 | O64: 7000 | T64: 7000 | U64: =SUM(O64-T64) -> 0 | V64: Izrav.ugovar.
A65: 44 | B65: 42273 | C65: Oprema | D65: oprema | M65: =SUM(O65-N65) -> 8000 | N65: =O65*20/100 -> 2000 | O65: 10000 | T65: 10000 | U65: =SUM(O65-T65) -> 0 | V65: Izrav.ugovar.
A66: 45 | B66: 42411 | C66: Knjige | D66: knjige | M66: =SUM(O66-N66) -> 2400 | N66: 600 | O66: 3000 | T66: 3000 | U66: =SUM(O66-T66) -> 0 | V66: Izrav.ugovar.
A67: 46 | C67: SVEUKUPNO PLAN NABAVE ZA 2020 GODINU | E67: =SUM(#REF!+#REF!) ->  | F67: =SUM(#REF!+#REF!) ->  | G67: =SUM(#REF!+#REF!) ->  | H67: =SUM(#REF!+#REF!) ->  | I67: =SUM(#REF!+#REF!) ->  | J67: =SUM(#REF!+#REF!) ->  | K67: =SUM(#REF!+#REF!) ->  | M67: =SUM(M16+M19+M35+M63) -> 597520 | N67: 149380 | O67: 746900 | P67: 949803 | Q67: 978300.131 | R67: 550280.5769 | S67: 569423.1525 | T67: 598900 | U67: 148000
J70: Za usvajanje prijedloga: | U70: Ravnateljica:
J71: PREDSJEDNIK UPRAVNOG VIJEĆA
B72: U Zagrebu, 18.12.2017. | C72: 16.12.2019. | U72: Mr.sc.Đana Baftiri,prof.def.

Sheet Rashodi (2)
A14: Red.br.
A16: 1
A17: 2
A18: 3
A19: 4
A20: 5
A21: 6
A22: 7
A23: 8
A24: 9
A25: 10
A26: 11
A27: 12
A28: 13
A29: 14
A30: 15
A31: 16
A32: 17
A33: 18
A34: 19
A35: 20
A36: 21
A37: 22
A38: 23
A39: 24
A40: 25
A41: 26
A42: 27
A43: 28
A44: 29
A45: 30
A46: 31
A47: 32
A48: 33
A49: 34
A50: 35
A51: 36
A52: 37
A53: 38
A54: 39
A55: 40
A56: 41
A57: 42
A58: 43
A59: 44
A60: 45
A61: 46
A62: 47
A63: 48
A64: 49
A65: 50
A66: 51
A67: 52
A68: 53
A69: 54
A70: 55
A71: 56
A72: 57
A73: 58
A74: 59
A75: 60
A76: 61
A77: 62
A78: 63
A79: 64
A80: 65
A81: 66
A82: 67
A83: 68
A84: 69
A85: 70
A86: 71
A87: 72
A88: 73
A89: 74
A90: 75
A91: 76
A92: 77
A93: 78
A94: 79
A95: 80
A96: 81
A97: 82
A98: 83
A99: 84
A100: 85
A101: 86
A102: 87
A103: 88
A104: 89
A105: 90
A106: 91
A107: 92
A108: 93
A109: 94
A110: 95
A111: 96
A112: 97
A113: 98
A114: 99
A115: 100
A116: 101
A117: 102
A118: 103

Sheet Broj djece (hidden)
E2: 1
A3: JLS | B3: God. plan | C3: Mj. plan | D3: Uk.br. djece | E3: =Prihodi!#REF! ->  | F3: % | G3: Broj djece po mjesecima
G4: 1 | H4: 2 | I4: 3 | J4: 4 | K4: 5 | L4: 6 | M4: 7 | N4: 8 | O4: 9 | P4: 10 | Q4: 11 | R4: 12
A5: Grad Zaprešić
A6: Općina Brdovec
A7: Općina Marija Gorica
A8: Općina Pušća
A9: Ukupno | B9: =SUM(B5:B8) -> 0 | C9: =B9/12 -> 0 | D9: =SUM(G9:R9) -> 0 | G9: =SUM(G5:G8) -> 0 | H9: 0 | I9: 0 | J9: 0 | K9: 0 | L9: 0 | M9: 0 | N9: 0 | O9: 0 | P9: 0 | Q9: 0 | R9: 0
O12: Ravnatelj:
O15: _____________________

Sheet Zaduženja roditelja (hidden)
A2: R. br. | B2: JLS | C2: Ukupno zaduženje roditelja | D2: Zaduženje roditelja po mjesecima
D3: 1 | E3: 2 | F3: 3 | G3: 4 | H3: 5 | I3: 6 | J3: 7 | K3: 8 | L3: 9 | M3: 10 | N3: 11 | O3: 12
A4: 1 | B4: Grad Zaprešić | C4: =SUM(D4:O4) -> 0
A5: 2 | B5: Općina Brdovec | C5: =SUM(D5:O5) -> 0
A6: 3 | B6: Općina M.Gorica | C6: =SUM(D6:O6) -> 0
A7: 4 | B7: Općina Pušća | C7: =SUM(D7:O7) -> 0
B8: Ukupno | C8: =SUM(D8:O8) -> 0 | D8: =SUM(D4:D7) -> 0 | E8: 0 | F8: 0 | G8: 0 | H8: 0 | I8: 0 | J8: 0 | K8: 0 | L8: 0 | M8: 0 | N8: 0 | O8: 0
M11: Ravnatelj:
M14: ______________________

Sheet Obračun (hidden)
A5: Izračun stvarne ekonomske cijene (predškolski odgoj i obrazovanje + oprema)
A6: Ukupno ostvareni rashodi: | E6: =SUM(Rashodi!#REF!)+SUM(Rashodi!#REF!) -> 
A7: - plaća za prosinac 2009.
A8: + plaća za tekući mjesec (isplata u sljedećem mjesecu)
A9: - predškola
A10: Ukupni rashodi za obračun: | E10: =E6-E7+E8-E9 -> 
A11: Ukupan broj djece: | E11: ='Broj djece'!D9 -> 0
A12: Ostvarena cijena po djetetu: | E12: =E10/E11 -> 
A16: Obračun za Grad Zaprešić
A18: Broj djece | B18: Cijena/dijete | C18: Ukupni izdaci (1x2) | D18: Zaduženje roditelja | E18: Zaduženje Grada za red.program (3-4) | F18: Zaduženje Grada za predškolu (bez sred. MZOIS) | G18: Zaduženje Grada za kapitalna ulaganja | I18: Uplate Grada | J18: Obračunati vl. i ostali prihodi | K18: Razlika tekuće godine za Grad (5+6+7+8-9-10)
G19: stolarija | H19: adap.kuh.
A20: 1 | B20: 2 | C20: 3 | D20: 4 | E20: 5 | F20: 6 | G20: 7 | H20: 8 | I20: 9 | J20: 10 | K20: 11
E21: =C21-D21 -> 0 | G21: =SUM(Rashodi!#REF!) ->  | H21: =SUM(Rashodi!#REF!) ->  | I21: =Prihodi!#REF!+Prihodi!#REF! -> 
I23: Početno stanje 01.01.2010.
I24: Razlika tekuće godine + PS | K24: =K21+K23 -> 0
J28: Ravnatelj:
J31: ______________________
